bitfinex-derivatives/quotes_SOLF0:USTF0_20260204
["timestamp","ask_amount","ask_price","bid_price","bid_amount"]
[1770215695217,66.50529362,93.303,93.239,9.6665]
[1770215695417,66.76195806,93.363,93.228,108.76]
[1770215695722,66.76195806,93.363,93.229,108.78]
[1770215695921,66.76195806,93.363,93.251,9.6652]
[1770215696515,66.47937147,93.343,93.264,9.664]
[1770215696720,66.47937147,93.399,93.23,21.73427803]
[1770215696921,66.46893434,93.395,93.26,21.73427803]
[1770215697119,66.46893434,93.395,93.301,9.6601]
[1770215697918,66.46893434,93.395,93.313,9.6588]
[1770215699221,67.9795155,93.392,93.289,108.92]
[1770215699525,67.9795155,93.392,93.27,21.73427803]
[1770215699526,67.9795155,93.392,93.314,9.6588]
[1770215699731,67.9795155,93.455,93.314,108.96]
[1770215700022,67.9795155,93.455,93.315,108.96]
[1770215700219,68.60787532,93.439,93.342,9.6558]
[1770215700420,68.60787532,93.439,93.315,108.96]
[1770215700627,68.60787532,93.439,93.33,21.73427803]
[1770215700920,364.2343,93.535,93.3,21.73427803]
[1770215700921,68.60908446,93.437,93.3,21.73427803]
[1770215701122,21.73427803,93.46,93.3,21.73427803]
[1770215701123,68.60908446,93.435,93.351,9.6549]
[1770215701424,68.60908446,93.509,93.369,150.1588]
[1770215701622,68.60908446,93.509,93.37,109.16]
[1770215701812,68.60908446,93.482,93.37,109.16]
[1770215702018,69.34711587,93.479,93.338,109.26]
[1770215702218,69.34711587,93.453,93.363,9.6537]
[1770215702413,69.34711587,93.453,93.338,109.26]
[1770215702618,69.34711587,93.453,93.33,21.73427803]
[1770215702818,69.34711587,93.453,93.363,9.6537]
[1770215703021,69.34711587,93.453,93.33,21.73427803]
[1770215703218,69.34711587,93.453,93.3,21.73427803]
[1770215703424,69.35190393,93.435,93.301,109.48]
[1770215703629,69.35190393,93.409,93.27,21.73427803]
[1770215703923,69.35190393,93.407,93.31,9.6591]
[1770215704227,69.35190393,93.407,93.288,150.2892]
[1770215704422,69.35190393,93.407,93.289,109.78]
[1770215704731,69.35190393,93.407,93.335,9.6566]
[1770215705124,69.35190393,93.407,93.24,21.73427803]
[1770215705323,69.35190393,93.407,93.237,150.3718]
[1770215705324,69.17153486,93.4,93.248,150.3546]
[1770215705531,69.17153486,93.398,93.277,150.3082]
[1770215705825,69.17153486,93.398,93.29,21.73427803]
[1770215706323,69.17153486,93.398,93.322,9.6579]
[1770215706528,69.17153486,93.398,93.29,21.73427803]
[1770215706930,67.8732224,93.396,93.309,9.6592]
[1770215707130,67.8709416,93.389,93.23,21.73427803]
[1770215707423,21.73427803,93.39,93.24,150.3674]
[1770215707424,67.8709416,93.371,93.24,150.3674]
[1770215707627,67.8709416,93.397,93.27,150.3184]
[1770215707825,67.8709416,93.392,93.26,21.73427803]
[1770215708225,67.8709416,93.392,93.281,150.3011]
[1770215708432,67.8709416,93.392,93.29,21.73427803]
[1770215708626,68.15111466,93.47,93.291,111.26]
[1770215708825,32.13,93.438,93.292,111.36]
[1770215709030,68.15111466,93.41,93.292,111.36]
[1770215709427,68.15014129,93.408,93.33,9.6571]
[1770215709623,68.15014129,93.408,93.292,111.36]
[1770215710222,68.15014129,93.408,93.228,19.3354]
[1770215710223,69.26004864,93.379,93.231,150.3812]
[1770215710530,69.26004864,93.37,93.25,21.73427803]
[1770215710834,69.26004864,93.429,93.28,21.73427803]
[1770215711235,21.73427803,93.43,93.324,9.6577]
[1770215711236,69.2638851,93.409,93.324,9.6577]
[1770215711528,69.2638851,93.409,93.303,111.82]
[1770215711722,21.73427803,93.43,93.303,111.82]
[1770215711723,69.2638851,93.405,93.323,9.6578]
[1770215711926,69.2638851,93.405,93.303,111.82]
[1770215712530,68.21784519,93.39,93.31,9.6592]
[1770215712733,68.21784519,93.39,93.25,21.73427803]
[1770215713030,68.21721141,93.376,93.251,111.94]
[1770215713629,77.87211141,93.352,93.265,9.6638]
[1770215713833,68.21721141,93.352,93.256,112.0]
[1770215714027,21.73427803,93.4,93.256,112.0]
[1770215714225,68.15534213,93.38,93.253,150.3462]
[1770215714544,68.15534213,93.405,93.27,150.3191]
[1770215714726,68.15534213,93.405,93.286,150.2925]
[1770215715033,68.15534213,93.405,93.289,150.2881]
[1770215715231,68.15447634,93.436,93.315,150.2469]
[1770215715424,68.15447634,93.436,93.316,112.34]
[1770215715829,68.15447634,93.489,93.32,21.73427803]
[1770215716024,68.15447634,93.489,93.325,150.2306]
[1770215716228,68.23974564,93.467,93.385,9.6514]
[1770215716524,68.23974564,93.467,93.35,21.73427803]
[1770215717032,68.23974564,93.464,93.351,112.72]
[1770215717231,68.23974564,93.464,93.346,112.7]
[1770215717437,68.23923581,93.453,93.372,9.6527]
[1770215717628,68.23923581,93.453,93.346,112.7]
[1770215717835,68.23923581,93.453,93.32,21.73427803]
[1770215718129,69.2776332,93.419,93.345,9.6556]
[1770215718322,69.2776332,93.459,93.327,150.2265]
[1770215718527,69.2776332,93.459,93.382,9.6517]
[1770215718725,69.2776332,93.459,93.35,21.73427803]
[1770215719032,69.2776332,93.459,93.313,150.2494]
[1770215719033,69.28108202,93.519,93.38,21.73427803]
[1770215719228,69.28108202,93.546,93.42,21.73427803]
[1770215719432,69.28108202,93.59,93.45,21.73427803]
[1770215719729,69.28108202,93.59,93.407,150.0978]
[1770215719730,69.28108202,93.583,93.451,112.98]
[1770215720134,73.02064672,93.564,93.451,112.98]
[1770215721139,73.0377993,93.591,93.47,32.54429079]
[1770215721736,73.0377993,93.591,93.451,112.98]
[1770215722133,76.88164448,93.575,93.466,9.643]
[1770215722433,76.88164448,93.575,93.451,112.98]
[1770215722836,32.54429079,93.6,93.443,150.0407]
[1770215722837,76.88164448,93.573,93.443,150.0407]
[1770215723040,76.88164448,93.573,93.426,150.068]
[1770215723041,76.88164448,93.573,93.47,32.54429079]
[1770215723436,76.91211638,93.602,93.486,149.9713]
[1770215723636,76.91211638,93.659,93.53,32.54429079]
[1770215723830,76.91211638,93.659,93.56,32.54429079]
[1770215724036,76.91211638,93.659,93.583,9.6309]
[1770215724342,76.91211638,93.659,93.561,113.72]
[1770215724533,76.91211638,93.659,93.58,9.6313]
[1770215724729,76.91211638,93.659,93.561,113.72]
[1770215725142,76.91211638,93.659,93.55,32.54429079]
[1770215725342,76.91211638,93.659,93.551,113.96]
[1770215725739,76.91211638,93.659,93.545,149.8769]
[1770215725740,76.91211638,93.659,93.593,9.63]
[1770215725932,76.91211638,93.659,93.552,113.96]
[1770215726434,76.91211638,93.659,93.519,149.9185]
[1770215726435,76.91211638,93.659,93.52,32.54429079]
[1770215726740,76.91211638,93.659,93.562,9.6331]
[1770215726943,76.91211638,93.659,93.552,114.2]
[1770215727237,76.91211638,93.659,93.553,114.16]
[1770215727438,78.39218615,93.629,93.49,32.54429079]
[1770215727647,78.39218615,93.629,93.491,114.18]
[1770215727944,78.39218615,93.61,93.491,114.18]
[1770215729037,78.09919141,93.607,93.469,149.9982]
[1770215729240,78.09919141,93.607,93.49,32.54429079]
[1770215729441,78.09919141,93.607,93.491,114.68]
[1770215729645,78.09919141,93.607,93.492,114.74]
[1770215729840,78.09919141,93.607,93.493,114.74]
[1770215730244,77.03741025,93.602,93.496,9.64]
[1770215730442,77.03741025,93.599,93.493,114.74]
[1770215730944,86.66691025,93.599,93.494,9.6401]
[1770215731136,86.66691025,93.599,93.493,114.74]
[1770215731538,77.03741025,93.599,93.477,149.9857]
[1770215731741,77.03741025,93.599,93.49,32.54429079]
[1770215731944,77.03741025,93.599,93.506,9.6389]
[1770215732144,77.03741025,93.599,93.49,32.54429079]
[1770215732441,77.03741025,93.599,93.505,9.639]
[1770215732838,77.03741025,93.599,93.493,149.9606]
[1770215733045,77.03741025,93.599,93.495,149.9577]
[1770215733242,77.03741025,93.599,93.494,115.18]
[1770215733945,76.9345176,93.596,93.46,32.54429079]
[1770215734142,76.9345176,93.596,93.461,115.46]
[1770215734442,76.9345176,93.596,93.47,149.9975]
[1770215734741,76.9345176,93.596,93.465,150.0056]
[1770215734742,76.9345176,93.596,93.461,115.46]
[1770215734943,75.61980143,93.594,93.461,115.46]
[1770215735332,75.61980143,93.594,93.43,32.54429079]
[1770215735543,75.61980143,93.594,93.41,150.0934]
[1770215735544,75.61980143,93.622,93.496,149.9556]
[1770215735744,75.61980143,93.622,93.495,149.9567]
[1770215735945,75.61980143,93.622,93.494,149.9582]
[1770215736240,75.61980143,93.622,93.52,32.54429079]
[1770215736445,75.61980143,93.622,93.505,149.9415]
[1770215736446,32.54429079,93.72,93.58,32.54429079]
[1770215736745,32.54429079,93.79,93.624,149.7502]
[1770215736934,32.54429079,93.79,93.64,32.54429079]
[1770215737134,19.2081,93.847,93.64,32.54429079]
[1770215737135,9.6081,93.806,93.649,149.7112]
[1770215737336,32.54429079,93.85,93.679,149.663]
[1770215737638,149.3183,93.896,93.66,149.6927]
[1770215737639,453.53383698,93.91,93.734,149.5749]
[1770215737843,453.53383698,93.91,93.76,32.54429079]
[1770215737844,420.98954619,93.91,93.76,32.54429079]
[1770215738236,453.53383698,93.91,93.761,116.74]
[1770215738440,63.70838348,93.907,93.69,149.6446]
[1770215738644,63.70838348,93.879,93.72,32.54429079]
[1770215738842,63.70838348,93.851,93.72,32.54429079]
[1770215739039,63.72253766,93.88,93.72,32.54429079]
[1770215739242,63.72253766,93.91,93.78,32.54429079]
[1770215739439,63.72253766,93.91,93.795,149.4781]
[1770215739744,63.72253766,93.91,93.796,117.08]
[1770215740040,32.54429079,93.93,93.796,117.08]
[1770215740041,64.8412902,93.908,93.796,117.08]
[1770215740541,64.8412902,93.908,93.72,149.5974]
[1770215740738,64.8412902,93.899,93.792,149.4818]
[1770215740933,64.8412902,93.899,93.77,32.54429079]
[1770215740934,64.8412902,93.899,93.793,117.28]
[1770215741132,64.85853375,93.929,93.794,117.48]
[1770215741336,64.85853375,93.929,93.8,32.54429079]
[1770215741540,64.85853375,93.923,93.795,9.6092]
[1770215741840,64.85853375,93.923,93.794,117.48]
[1770215742040,64.85853375,93.923,93.812,9.6074]
[1770215742639,64.85853375,93.923,93.8,32.54429079]
[1770215743045,9.5987,93.899,93.781,117.6]
[1770215743245,9.5987,93.899,93.721,149.5949]
[1770215743246,65.56631536,93.898,93.782,117.58]
[1770215743440,65.56631536,93.898,93.747,149.5532]
[1770215743644,65.56631536,93.898,93.74,32.54429079]
[1770215743645,65.56631536,93.898,93.765,9.6123]
[1770215743848,65.56631536,93.898,93.748,117.62]
[1770215743849,65.56631536,93.898,93.77,32.54429079]
[1770215744046,65.56631536,93.898,93.785,149.4938]
[1770215744241,65.56631536,93.898,93.808,9.6079]
[1770215744442,65.56631536,93.898,93.782,117.54]
[1770215744655,65.56631536,93.898,93.783,9.6104]
[1770215744842,65.56631536,93.898,93.782,117.54]
[1770215745249,65.56631536,93.898,93.779,117.64]
[1770215745449,65.56631536,93.898,93.76,32.54429079]
[1770215745647,65.56631536,93.898,93.761,117.64]
[1770215745853,139.24,93.946,93.76,32.54429079]
[1770215745854,64.39343099,93.895,93.76,32.54429079]
[1770215746050,62.03097922,93.889,93.727,149.5865]
[1770215746346,62.03097922,93.887,93.759,9.6129]
[1770215746947,62.03097922,93.884,93.778,9.6109]
[1770215747153,62.03097922,93.884,93.777,117.82]
[1770215747349,139.22,93.911,93.703,149.6236]
[1770215747350,62.038939,93.879,93.747,117.82]
[1770215747547,62.038939,93.879,93.746,117.82]
[1770215748250,149.2824,93.919,93.746,117.82]
[1770215748251,60.15455727,93.907,93.773,149.5118]
[1770215748551,32.54429079,93.97,93.846,28.68606705]
[1770215748749,418.59325148,93.985,93.848,28.68606705]
[1770215749344,418.59325148,93.985,93.872,29.0716415]
[1770215749644,139.5,94.012,93.872,29.0716415]
[1770215749850,139.5,94.012,93.874,29.0716415]
[1770215750050,32.54429079,94.0,93.874,29.0716415]
[1770215750350,148.9737,94.113,93.916,30.17481482]
[1770215750555,50.53412161,94.111,93.98,32.54429079]
[1770215750751,50.53412161,94.111,93.994,30.17481482]
[1770215751150,50.53412161,94.111,94.001,30.55396584]
[1770215751349,83.0784124,94.15,94.029,30.55396584]
[1770215751548,83.0784124,94.15,94.041,30.55396584]
[1770215751549,7.456e-05,94.127,94.041,30.55396584]
[1770215751754,7.456e-05,94.127,94.079,30.55396584]
[1770215751951,50.53412161,94.222,94.08,149.0251]
[1770215752251,50.53412161,94.222,94.062,149.0539]
[1770215752252,50.53412161,94.183,94.081,118.46]
[1770215752653,50.53412161,94.183,94.058,30.09806994]
[1770215752856,9.5717,94.164,94.03,30.09806994]
[1770215753149,50.53412161,94.163,94.041,30.46451088]
[1770215753351,50.53412161,94.193,94.069,30.46451088]
[1770215753954,50.53412161,94.193,94.107,9.5774]
[1770215754257,53.45255122,94.229,94.108,142.99774008]
[1770215754459,53.45255122,94.229,94.1,118.56]
[1770215754753,53.45255122,94.229,94.121,24.39774008]
[1770215754953,53.45255122,94.291,94.132,24.39774008]
[1770215755158,53.45255122,94.291,94.149,23.0303137]
[1770215755354,148.5948,94.353,94.1,118.56]
[1770215755355,53.45255122,94.239,94.1,32.54429079]
[1770215755551,53.45255122,94.239,94.116,9.5765]
[1770215755860,53.45255122,94.239,94.113,23.0303137]
[1770215756049,53.45255122,94.235,94.127,9.5754]
[1770215756359,53.45255122,94.235,94.093,20.84417684]
[1770215756558,53.45255122,94.235,94.092,118.72]
[1770215756559,53.45255122,94.235,94.096,20.84417684]
[1770215756761,53.45255122,94.231,94.1,20.84417684]
[1770215757058,148.6462,94.321,94.092,118.72]
[1770215757059,53.45255122,94.279,94.131,19.51843821]
[1770215757252,53.45255122,94.279,94.151,19.51843821]
[1770215757451,53.45255122,94.279,94.153,19.51843821]
[1770215757661,53.45255122,94.277,94.12,19.51843821]
[1770215757961,53.45255122,94.237,94.108,20.51697178]
[1770215758361,51.31109376,94.217,94.078,20.51697178]
[1770215758553,51.31109376,94.189,94.066,9.5815]
[1770215758861,51.31109376,94.162,94.045,20.51697178]
[1770215759159,148.8445,94.195,94.017,19.191081]
[1770215759160,51.31109376,94.159,94.017,19.191081]
[1770215759347,51.31109376,94.159,94.042,19.191081]
[1770215759552,51.31109376,94.159,94.059,9.5823]
[1770215759953,51.31109376,94.159,94.046,9.5835]
[1770215760153,51.31109376,94.159,94.005,20.77203104]
[1770215760468,51.31109376,94.139,94.005,20.77203104]
[1770215760756,51.31109376,94.104,93.974,20.77203104]
[1770215761159,51.31109376,94.104,93.976,19.43999319]
[1770215761558,140.24,94.141,93.98,9.5903]
[1770215761559,51.31109376,94.099,93.98,9.5903]
[1770215761863,51.31109376,94.099,93.976,19.43999319]
[1770215762157,51.31109376,94.075,93.911,25.94155692]
[1770215762359,51.31109376,94.104,93.971,25.94155692]
[1770215762561,51.31109376,94.104,93.982,25.94155692]
[1770215762756,51.31109376,94.104,94.01,25.94155692]
[1770215763059,51.31109376,94.104,93.981,24.54121911]
[1770215763464,51.31109376,94.101,93.981,24.54121911]
[1770215763966,51.31109376,94.178,93.994,26.70790349]
[1770215764162,51.31109376,94.178,94.056,9.5826]
[1770215764357,51.31109376,94.178,94.057,26.70790349]
[1770215764557,32.54429079,94.21,94.026,26.70790349]
[1770215764558,51.31109376,94.17,94.026,26.70790349]
[1770215764754,51.31109376,94.17,93.993,119.82]
[1770215764755,51.31109376,94.17,94.055,26.70790349]
[1770215764955,51.31109376,94.17,94.022,149.1162]
[1770215764956,51.31109376,94.239,94.11,32.54429079]
[1770215765160,51.31109376,94.239,94.111,25.29460645]
[1770215765355,140.78,94.285,94.081,25.29460645]
[1770215765356,51.31109376,94.237,94.081,25.29460645]
[1770215765556,51.31109376,94.237,94.088,25.29460645]
[1770215765765,51.31109376,94.237,94.127,25.29460645]
[1770215765964,148.5597,94.375,94.175,48.98459325]
[1770215766161,148.544,94.385,94.175,48.98459325]
[1770215766162,32.54429079,94.35,94.201,48.98459325]
[1770215766363,32.54429079,94.38,94.201,48.98459325]
[1770215766569,32.54429079,94.38,94.211,48.98459325]
[1770215766867,148.5842,94.36,94.215,48.98459325]
[1770215767165,148.5854,94.359,94.215,48.98459325]
[1770215767361,140.96,94.381,94.153,47.57026084]
[1770215767362,148.681,94.298,94.153,47.57026084]
[1770215767557,32.54429079,94.3,94.153,47.57026084]
[1770215767958,51.31109376,94.288,94.155,44.82537588]
[1770215768161,51.31109376,94.319,94.201,44.82537588]
[1770215768462,148.5113,94.406,94.19,32.54429079]
[1770215768463,51.31109376,94.347,94.248,148.7589]
[1770215768768,51.31109376,94.347,94.224,148.7963]
[1770215768769,51.31109376,94.379,94.256,44.82537588]
[1770215768957,9.456e-05,94.348,94.293,9.5585]
[1770215769156,9.456e-05,94.348,94.276,43.46047538]
[1770215769959,51.31118832,94.348,94.241,43.46047538]
[1770215770359,51.31109376,94.345,94.2,32.54429079]
[1770215770667,51.31109376,94.304,94.179,41.58078287]
[1770215770866,41.31109376,94.304,94.204,51.58078287]
[1770215771064,9.456e-05,94.348,94.218,49.90906667]
[1770215771365,148.4783,94.427,94.196,148.8416]
[1770215771366,5.932e-05,94.371,94.284,49.90906667]
[1770215771571,5.932e-05,94.371,94.295,9.5583]
[1770215771771,5.932e-05,94.371,94.284,49.90906667]
[1770215772477,5.932e-05,94.371,94.249,47.28205755]
[1770215772661,5.932e-05,94.371,94.25,47.28205755]
[1770215772974,5.932e-05,94.371,94.23,120.74]
[1770215772975,5.932e-05,94.371,94.284,45.6643233]
[1770215773168,5.932e-05,94.371,94.288,45.6643233]
[1770215773369,5.932e-05,94.371,94.28,32.54429079]
[1770215773370,5.932e-05,94.371,94.297,45.6643233]
[1770215773567,148.3335,94.519,94.296,148.6835]
[1770215773568,51.31109376,94.468,94.354,9.5523]
[1770215773762,51.31109376,94.468,94.326,45.6643233]
[1770215773965,51.31109376,94.46,94.326,45.6643233]
[1770215774161,51.31109376,94.445,94.328,9.5549]
[1770215774367,51.31109376,94.445,94.326,45.6643233]
[1770215774571,32.54429079,94.46,94.241,148.7696]
[1770215774572,51.31109376,94.442,94.295,46.58102943]
[1770215774772,51.31109376,94.442,94.28,32.54429079]
[1770215774773,51.31109376,94.422,94.299,56.13892943]
[1770215774977,51.31109376,94.399,94.266,44.95905733]
[1770215775179,51.31109376,94.399,94.199,148.836]
[1770215775180,51.31109376,94.369,94.232,44.95905733]
[1770215775382,51.31109376,94.318,94.202,44.95905733]
[1770215775572,51.31109376,94.35,94.227,44.95905733]
[1770215775776,51.31109376,94.35,94.266,9.5612]
[1770215775975,51.31109376,94.35,94.24,44.95905733]
[1770215776476,51.31109376,94.35,94.189,148.8528]
[1770215776477,51.31109376,94.339,94.207,44.05317574]
[1770215776870,51.31109376,94.339,94.237,44.05317574]
[1770215777074,51.31109376,94.37,94.255,42.44959263]
[1770215777271,51.31109376,94.419,94.271,42.44959263]
[1770215777478,51.31109376,94.419,94.326,9.5551]
[1770215777778,148.3809,94.489,94.272,121.2]
[1770215777779,51.31109376,94.451,94.325,42.44959263]
[1770215778080,51.31109376,94.451,94.328,42.44959263]
[1770215778382,51.31109376,94.451,94.315,121.3]
[1770215778383,51.31109376,94.415,94.261,44.72540279]
[1770215778881,51.31109376,94.376,94.229,44.72540279]
[1770215779176,51.31109376,94.359,94.245,43.09364269]
[1770215779390,51.31109376,94.397,94.304,9.5573]
[1770215779592,51.31109376,94.397,94.27,121.7]
[1770215779987,51.31109376,94.397,94.302,9.5575]
[1770215780184,51.31109376,94.397,94.27,121.7]
[1770215780185,32.54429079,94.42,94.3,148.6768]
[1770215780384,51.31109376,94.428,94.348,9.5529]
[1770215780990,51.31109376,94.428,94.294,43.79611551]
[1770215781289,51.31109376,94.428,94.301,42.16233791]
[1770215781479,32.54429079,94.46,94.329,42.16233791]
[1770215781480,51.31109376,94.459,94.329,42.16233791]
[1770215781992,51.31109376,94.457,94.352,9.5525]
[1770215782486,51.31109376,94.457,94.302,121.76]
[1770215782487,51.31109376,94.457,94.333,148.6243]
[1770215782691,51.31109376,94.499,94.358,43.43118733]
[1770215783084,51.31109376,94.499,94.332,148.6267]
[1770215783085,60.84879376,94.499,94.361,41.78524285]
[1770215783284,60.84879376,94.499,94.322,148.6422]
[1770215783285,51.31109376,94.53,94.404,41.78524285]
[1770215783586,51.31109376,94.565,94.426,41.78524285]
[1770215783788,33.1985184,94.56,94.426,41.78524285]
[1770215784294,38.4818536,94.57,94.451,33.95213563]
[1770215784585,38.4818536,94.57,94.416,148.495]
[1770215784586,5.2833352,94.57,94.477,43.49193563]
[1770215784784,5.2833352,94.57,94.405,121.72]
[1770215784785,5.2833352,94.57,94.478,33.95213563]
[1770215784979,33.1985184,94.543,94.391,33.95213563]
[1770215785183,33.1985184,94.519,94.391,33.95213563]
[1770215785385,33.1985184,94.507,94.365,33.95213563]
[1770215785584,33.1985184,94.479,94.331,33.95213563]
[1770215785785,33.1985184,94.451,94.331,33.95213563]
[1770215786192,33.1985184,94.419,94.299,33.95213563]
[1770215786386,33.1985184,94.419,94.28,33.95213563]
[1770215786585,33.1985184,94.451,94.326,33.95213563]
[1770215786785,33.1985184,94.486,94.365,33.95213563]
[1770215787094,33.1985184,94.516,94.415,33.95213563]
[1770215787391,33.1985184,94.516,94.37,22.92573479]
[1770215787392,33.1985184,94.516,94.385,33.95213563]
[1770215787794,33.1985184,94.515,94.385,33.95213563]
[1770215788089,148.2281,94.587,94.379,122.02]
[1770215788090,33.1985184,94.579,94.472,33.95213563]
[1770215788789,33.1985184,94.579,94.402,148.5164]
[1770215788790,33.1985184,94.569,94.447,33.95213563]
[1770215789194,33.1985184,94.559,94.414,33.45323788]
[1770215789387,33.1985184,94.547,94.445,9.5431]
[1770215789688,33.1985184,94.547,94.413,122.36]
[1770215789689,23.1985184,94.547,94.419,33.95213563]
[1770215789892,3.52e-05,94.57,94.462,33.95213563]
[1770215790086,9.5307,94.569,94.468,9.5408]
[1770215790792,22.92576999,94.57,94.429,33.95213563]
[1770215791194,9.5309,94.567,94.434,33.95213563]
[1770215791398,3.52e-05,94.57,94.44,33.95213563]
[1770215791599,3.52e-05,94.57,94.456,33.95213563]
[1770215792286,3.52e-05,94.57,94.508,9.5367]
[1770215792491,3.52e-05,94.57,94.44,33.95213563]
[1770215792685,3.52e-05,94.57,94.419,122.48]
[1770215792686,3.52e-05,94.57,94.442,33.95213563]
[1770215792886,3.52e-05,94.57,94.437,148.4609]
[1770215792887,3.52e-05,94.57,94.457,33.95213563]
[1770215793087,3.52e-05,94.57,94.449,148.4417]
[1770215793088,3.52e-05,94.57,94.482,33.95213563]
[1770215793497,3.52e-05,94.57,94.423,148.4829]
[1770215793498,3.52e-05,94.57,94.447,33.95213563]
[1770215793896,33.1985184,94.559,94.401,33.95213563]
[1770215794094,33.1985184,94.549,94.441,181.14456369]
[1770215794292,3.52e-05,94.57,94.462,32.69006369]
[1770215794597,3.52e-05,94.57,94.43,22.92573479]
[1770215794598,3.52e-05,94.57,94.467,32.69006369]
[1770215795005,22.92573479,94.55,94.433,42.23436369]
[1770215795294,22.92573479,94.55,94.36,19.1033]
[1770215795295,22.92573479,94.58,94.445,33.95213563]
[1770215795489,22.92573479,94.58,94.427,148.4768]
[1770215795490,9.5305,94.57,94.447,33.95213563]
[1770215795689,22.92573479,94.6,94.447,33.95213563]
[1770215795891,22.92573479,94.6,94.456,33.95213563]
[1770215796195,1.8408705,94.621,94.484,148.3873]
[1770215796404,147.9115,94.789,94.589,148.2234]
[1770215796693,140.2,94.779,94.639,9.5235]
[1770215796898,8.48e-05,94.741,94.645,148.1344]
[1770215797096,22.92573479,94.8,94.706,9.5168]
[1770215797297,3.441e-05,94.776,94.695,33.95213563]
[1770215797593,3.441e-05,94.776,94.681,148.0787]
[1770215797594,7.584e-05,94.792,94.76,9.5114]
[1770215797797,22.92573479,94.89,94.761,33.95213563]
[1770215797995,22.92573479,94.92,94.78,33.95213563]
[1770215798297,147.6517,94.956,94.78,33.95213563]
[1770215798594,147.6794,94.938,94.752,33.95213563]
[1770215798796,22.92573479,94.94,94.799,147.8943]
[1770215798992,147.7241,94.909,94.755,33.95213563]
[1770215799300,33.1985184,94.879,94.755,33.95213563]
[1770215799496,33.1985184,94.869,94.755,33.95213563]
[1770215799696,22.92573479,94.9,94.784,33.95213563]
[1770215799897,33.1985184,94.937,94.814,33.95213563]
[1770215800194,33.1985184,95.012,94.932,9.4941]
[1770215800392,5.20459584,95.013,94.932,9.4941]
[1770215800594,5.20459584,95.013,94.88,22.92573479]
[1770215800595,38.40311424,95.013,94.87,33.95213563]
[1770215800792,23.1985184,94.989,94.834,33.95213563]
[1770215800994,147.6016,94.988,94.834,33.95213563]
[1770215801193,22.92573479,94.93,94.798,33.95213563]
[1770215801398,147.6121,94.981,94.802,33.95213563]
[1770215801599,211.54,95.019,94.802,33.95213563]
[1770215801600,147.5072,95.049,94.853,33.95213563]
[1770215801802,22.92573479,94.99,94.874,9.4999]
[1770215802096,22.92573479,94.99,94.851,33.95213563]
[1770215802499,22.92573479,94.99,94.781,147.922]
[1770215802500,147.6898,94.931,94.781,33.95213563]
[1770215802803,33.1985184,94.876,94.745,33.95213563]
[1770215803301,22.92573479,94.9,94.797,9.5076]
[1770215803502,147.6315,94.969,94.797,9.5076]
[1770215803503,33.1985184,94.911,94.797,9.5076]
[1770215803702,33.1985184,94.889,94.738,33.95213563]
[1770215803898,33.1985184,94.889,94.704,148.0426]
[1770215803899,22.92573479,94.8,94.647,33.95213563]
[1770215804208,22.92573479,94.78,94.663,33.95213563]
[1770215804501,29.17526916,94.799,94.682,33.95213563]
[1770215805800,29.17526916,94.799,94.657,33.71529589]
[1770215806107,22.50921228,94.734,94.59,29.64422394]
[1770215806402,22.50921228,94.734,94.514,148.3407]
[1770215806403,22.50921228,94.707,94.583,9.5292]
[1770215806611,22.50921228,94.707,94.584,29.64422394]
[1770215807008,22.50921228,94.707,94.587,25.34043093]
[1770215807411,20.28080108,94.697,94.545,25.34043093]
[1770215807599,20.28080108,94.677,94.545,25.34043093]
[1770215808103,20.28080108,94.677,94.55,21.2877364]
[1770215808507,17.87632015,94.694,94.55,21.2877364]
[1770215808702,17.87632015,94.694,94.572,21.2877364]
[1770215808899,17.87632015,94.688,94.538,21.2877364]
[1770215809203,15.73167358,94.659,94.503,17.04937449]
[1770215809413,15.73167358,94.639,94.503,17.04937449]
[1770215809809,148.1661,94.626,94.503,17.04937449]
[1770215810002,22.92573479,94.63,94.471,27.04937449]
[1770215810200,9.5268,94.607,94.471,27.04937449]
[1770215810398,22.92573479,94.6,94.471,27.04937449]
[1770215810606,22.92573479,94.62,94.471,27.04937449]
[1770215810803,9.5267,94.609,94.479,9.5396]
[1770215811308,22.92573479,94.66,94.512,18.64568738]
[1770215811512,22.92573479,94.63,94.512,18.64568738]
[1770215811909,1.58844698,94.637,94.512,18.64568738]
[1770215812410,0.17865358,94.629,94.488,15.80690684]
[1770215812608,0.17865358,94.629,94.492,164.18190684]
[1770215812913,0.17865358,94.629,94.48,22.92573479]
[1770215812914,0.17865358,94.629,94.494,15.80690684]
[1770215813110,0.17865358,94.629,94.472,15.80690684]
[1770215813411,0.17865358,94.599,94.472,15.80690684]
[1770215813904,0.17865358,94.599,94.492,3.97179431]